bitfinex-derivatives/quotes_BTCF0:USTF0_20250211
["timestamp","ask_amount","ask_price","bid_price","bid_amount"]
[1739240526220,0.00315345,97721.0,97720.0,0.5664355]
[1739240526419,0.00315345,97721.0,97720.0,0.5674355]
[1739240527325,0.00215345,97721.0,97720.0,0.5674355]
[1739240528725,1.5,97762.0,97720.0,0.6628]
[1739240528925,0.18252813,97757.0,97751.0,0.3608]
[1739240529227,0.18252813,97757.0,97755.0,0.2045606]
[1739240530626,0.18952813,97757.0,97755.0,0.2045606]
[1739240532027,0.18952813,97757.0,97756.0,0.0317]
[1739240533132,0.18252813,97757.0,97756.0,0.0317]
[1739240533329,0.008,97757.0,97756.0,0.0317]
[1739240539530,0.00015345,97766.0,97765.0,0.2045413]
[1739240539726,0.01020232,97780.0,97765.0,0.3608]
[1739240539928,0.2044901,97790.0,97782.0,0.2045057]
[1739240540531,0.08444,97792.0,97782.0,0.2045057]
[1739240540738,0.2044927,97789.0,97782.0,0.2045057]
[1739240541040,0.10569617,97783.0,97782.0,0.2045057]
[1739240541637,0.11269617,97783.0,97782.0,0.2045057]
[1739240542343,0.01719617,97783.0,97782.0,0.2045057]
[1739240542636,0.03219617,97783.0,97782.0,0.001]
[1739240542932,0.03219617,97783.0,97782.0,0.2055057]
[1739240544835,0.03219617,97783.0,97775.0,0.3608]
[1739240544836,0.03219617,97783.0,97775.0,0.35144822]
[1739240546027,0.03219617,97783.0,97775.0,0.35244822]
[1739240546233,0.03219617,97783.0,97782.0,0.2045057]
[1739240547536,0.021,97783.0,97782.0,0.2045057]
[1739240548136,0.015,97783.0,97782.0,0.2045057]
[1739240548340,0.022,97783.0,97782.0,0.2045057]
[1739240548838,0.022,97783.0,97782.0,0.2055057]
[1739240550527,0.022,97783.0,97775.0,0.35144822]
[1739240551144,1.5,97782.0,97775.0,0.35144822]
[1739240551436,0.2045163,97777.0,97775.0,0.35144822]
[1739240551829,0.2045163,97777.0,97775.0,0.35244822]
[1739240552034,0.2045163,97777.0,97775.0,0.001]
[1739240552438,0.005,97782.0,97773.0,0.00015345]
[1739240552642,0.2045183,97776.0,97775.0,0.001]
[1739240554230,0.009,97777.0,97775.0,0.001]
[1739240554433,0.2045183,97776.0,97775.0,0.001]
[1739240554737,0.01,97777.0,97775.0,0.001]
[1739240554941,0.01,97777.0,97775.0,0.2055184]
[1739240555240,0.001,97776.0,97775.0,0.2055184]
[1739240557746,0.01,97776.0,97775.0,0.2055184]
[1739240558142,0.05973172,97776.0,97775.0,0.2055184]
[1739240558344,0.04973172,97776.0,97775.0,0.2045184]
[1739240558644,0.04973172,97776.0,97775.0,0.2075184]
[1739240559448,0.04973172,97776.0,97775.0,0.2095184]
[1739240561346,0.2007714,97776.0,97775.0,0.2065184]
[1739240561646,0.2007714,97776.0,97775.0,0.2095184]
[1739240561848,0.2007714,97776.0,97775.0,0.2075184]
[1739240562055,0.2007714,97776.0,97775.0,0.2095184]
[1739240564439,0.2007714,97776.0,97775.0,0.2065184]
[1739240564645,0.2007714,97776.0,97775.0,0.2095184]
[1739240564843,0.04973172,97776.0,97775.0,0.2095184]
[1739240569342,0.18273831,97776.0,97775.0,0.2095184]
[1739240572955,0.15668493,97776.0,97775.0,0.2095184]
[1739240576057,0.15668493,97776.0,97775.0,0.005]
[1739240577045,0.0953,97779.0,97775.0,0.005]
[1739240577757,0.0953,97779.0,97775.0,0.003]
[1739240577957,0.001,97776.0,97775.0,0.003]
[1739240578260,0.2055186,97776.0,97775.0,0.003]
[1739240579557,0.2045186,97776.0,97775.0,0.003]
[1739240580658,0.05373172,97776.0,97757.0,0.2045566]
[1739240580957,0.05373172,97776.0,97740.0,0.0937597]
[1739240580958,0.3608,97764.0,97741.0,0.0913]
[1739240581155,0.2045649,97754.0,97745.0,0.2045825]
[1739240581365,0.2045649,97754.0,97747.0,0.2045779]
[1739240581551,0.2045703,97752.0,97747.0,0.2045779]
[1739240583056,0.2045821,97746.0,97741.0,0.1033]
[1739240583255,0.0937597,97751.0,97741.0,0.1033]
[1739240583560,0.2045816,97746.0,97741.0,0.1033]
[1739240583753,0.2045816,97746.0,97741.0,0.1003]
[1739240584251,0.2045816,97746.0,97741.0,0.0913]
[1739240585054,0.2055816,97746.0,97741.0,0.0913]
[1739240585552,0.2045867,97744.0,97741.0,0.0913]
[1739240585955,0.2045867,97744.0,97741.0,0.1003]
[1739240586156,0.2045894,97742.0,97741.0,0.009]
[1739240586855,0.2045894,97742.0,97740.0,0.00015345]
[1739240587062,0.2045894,97742.0,97741.0,0.007]
[1739240587465,0.2045894,97742.0,97741.0,0.008]
[1739240588861,0.2055894,97742.0,97741.0,0.008]
[1739240589066,0.2065894,97742.0,97741.0,0.008]
[1739240589769,0.25632112,97742.0,97741.0,0.008]
[1739240589961,0.25632112,97742.0,97740.0,0.00072618]
[1739240590161,0.26677604,97742.0,97740.0,0.00072618]
[1739240590667,0.2045971,97739.0,97730.0,0.0015347]
[1739240590967,0.3608,97737.0,97730.0,0.0015347]
[1739240592063,0.3608,97737.0,97730.0,0.0025347]
[1739240592370,0.3608,97737.0,97719.0,0.2046355]
[1739240592563,0.3608,97728.0,97719.0,0.2046355]
[1739240593365,0.3608,97737.0,97719.0,0.2046355]
[1739240593666,0.3638,97737.0,97719.0,0.2046355]
[1739240594258,0.001,97728.0,97719.0,0.2046355]
[1739240594470,0.003,97728.0,97719.0,0.2046355]
[1739240594866,0.002,97728.0,97719.0,0.2046355]
[1739240595565,0.003,97728.0,97719.0,0.2046355]
[1739240597768,0.003,97728.0,97720.0,0.2046336]
[1739240598976,0.003,97728.0,97722.0,0.3608]
[1739240600070,0.01341215,97728.0,97722.0,0.3608]
[1739240600276,0.01241215,97728.0,97722.0,0.3608]
[1739240600477,0.01341215,97728.0,97722.0,0.3608]
[1739240601771,0.01341215,97728.0,97722.0,0.5654306]
[1739240603983,0.2046249,97726.0,97722.0,0.3608]
[1739240604179,0.2046249,97726.0,97714.0,0.3608]
[1739240604880,0.204627,97725.0,97714.0,0.5654467]
[1739240605382,0.204627,97725.0,97715.0,0.2046448]
[1739240605579,0.204627,97725.0,97716.0,0.204642]
[1739240607493,0.205627,97725.0,97716.0,0.204642]
[1739240609089,0.205627,97725.0,97721.0,0.3608]
[1739240609398,0.2046291,97724.0,97721.0,0.3608]
[1739240610692,0.2056291,97724.0,97721.0,0.3608]
[1739240612094,0.2046313,97722.0,97721.0,0.3608]
[1739240612493,0.2046317,97722.0,97702.0,0.2046728]
[1739240612701,0.2046625,97708.0,97703.0,0.2046702]
[1739240613102,0.2046625,97708.0,97704.0,0.2046681]
[1739240614296,0.2046625,97708.0,97700.0,0.1]
[1739240614297,0.2046716,97703.0,97700.0,0.1]
[1739240615395,0.2056716,97703.0,97700.0,0.1]
[1739240616105,0.2046753,97701.0,97700.0,0.1]
[1739240616498,0.001,97703.0,97700.0,0.1]
[1739240617497,0.001,97701.0,97700.0,0.1]
[1739240618206,0.001,97703.0,97700.0,0.1]
[1739240618706,0.001,97701.0,97700.0,0.1]
[1739240619094,0.2046774,97700.0,97696.0,0.00153524]
[1739240619299,0.0325,97699.0,97696.0,0.00153524]
[1739240619699,0.2046816,97698.0,97696.0,0.00153524]
[1739240620608,0.0325,97699.0,97696.0,0.00153524]
[1739240621696,0.04977444,97698.0,97696.0,0.00153524]
[1739240622411,0.04977444,97698.0,97694.0,0.204537]
[1739240622913,0.04977444,97698.0,97696.0,0.5654853]
[1739240623222,0.04977444,97698.0,97697.0,0.0303]
[1739240623401,0.15174149,97699.0,97698.0,0.2046815]
[1739240626716,0.15174149,97699.0,97697.0,0.0303]
[1739240626717,0.1619322,97707.0,97697.0,0.0303]
[1739240626908,0.1619322,97707.0,97700.0,0.2046771]
[1739240628404,0.2046696,97704.0,97699.0,0.0632]
[1739240629612,0.2046775,97700.0,97696.0,0.3608]
[1739240630617,0.2046847,97697.0,97690.0,0.3608]
[1739240630809,0.2046871,97696.0,97690.0,0.3608]
[1739240631620,0.2046871,97696.0,97685.0,0.2047077]
[1739240631811,0.2056871,97696.0,97690.0,0.003]
[1739240632013,0.001,97696.0,97690.0,0.003]
[1739240632213,0.001,97696.0,97694.0,0.2046887]
[1739240633311,0.15174149,97702.0,97693.0,0.3608]
[1739240633516,0.001,97696.0,97695.0,0.2046865]
[1739240634122,0.15174149,97702.0,97700.0,0.2046752]
[1739240634818,0.15174149,97702.0,97701.0,0.093]
[1739240635927,0.15174149,97702.0,97701.0,0.4538]
[1739240636122,0.15186334,97710.0,97701.0,0.4538]
[1739240636314,0.15186334,97710.0,97709.0,0.2046585]
[1739240637419,0.15286334,97710.0,97709.0,0.2046585]
[1739240638017,0.15186334,97710.0,97709.0,0.2046585]
[1739240638322,0.15286334,97710.0,97709.0,0.2046585]
[1739240639717,0.001,97710.0,97709.0,0.2046585]
[1739240640114,0.00015345,97715.0,97712.0,0.2046505]
[1739240641023,0.00015345,97715.0,97711.0,0.3608]
[1739240641223,0.00115345,97715.0,97712.0,0.003]
[1739240641425,0.00115345,97715.0,97713.0,0.2046482]
[1739240644425,0.00115345,97715.0,97713.0,0.2076482]
[1739240647322,0.00115345,97715.0,97713.0,0.003]
[1739240653438,0.2046898,97695.0,97684.0,0.3608]
[1739240653744,0.0631,97694.0,97684.0,0.3608]
[1739240654834,0.0641,97694.0,97684.0,0.3608]
[1739240655831,0.07442229,97694.0,97684.0,0.3608]
[1739240656438,0.10832229,97694.0,97684.0,0.3608]
[1739240656937,0.10732229,97694.0,97684.0,0.3608]
[1739240657240,0.10832229,97694.0,97684.0,0.3608]
[1739240657741,0.002,97694.0,97693.0,0.565492]
[1739240657928,0.4581,97728.0,97693.0,0.3608]
[1739240658238,0.2046321,97722.0,97705.0,0.0937597]
[1739240658443,0.18194572,97709.0,97708.0,0.2046606]
[1739240660330,0.18294572,97709.0,97708.0,0.2046606]
[1739240660838,0.001,97709.0,97708.0,0.2046606]
[1739240662049,0.18194572,97724.0,97714.0,0.204648]
[1739240667438,0.18194572,97725.0,97714.0,0.204648]
[1739240668647,0.01004514,97719.0,97714.0,0.204648]
[1739240668846,0.18194572,97725.0,97714.0,0.204648]
[1739240670146,0.00268928,97715.0,97714.0,0.204648]
[1739240672151,0.00253583,97715.0,97714.0,0.204648]
[1739240672347,0.15202166,97734.0,97733.0,0.2046082]
[1739240672541,0.15202166,97734.0,97733.0,0.5654082]
[1739240673551,0.16702166,97734.0,97733.0,0.5664082]
[1739240673854,0.17102166,97734.0,97733.0,0.5664082]
[1739240675658,0.019,97734.0,97733.0,0.5664082]
[1739240676750,0.00015353,97743.0,97742.0,0.2045894]
[1739240677857,0.00715353,97743.0,97742.0,0.2045894]
[1739240678854,0.01615353,97743.0,97742.0,0.2055894]
[1739240681347,0.00715353,97743.0,97742.0,0.2045894]
[1739240681651,0.01415353,97743.0,97742.0,0.2055894]
[1739240681846,0.00715353,97743.0,97742.0,0.2055894]
[1739240682041,0.01115353,97743.0,97742.0,0.2055894]
[1739240691064,0.01115353,97743.0,97742.0,0.3555894]
[1739240694461,0.15202166,97760.0,97759.0,0.2045538]
[1739240694650,0.0645,97776.0,97767.0,0.2045371]
[1739240695353,0.0645,97776.0,97767.0,0.5653371]
[1739240696162,0.0645,97776.0,97767.0,0.5663371]
[1739240696163,0.18894572,97768.0,97767.0,0.5663371]
[1739240696763,0.19194572,97768.0,97767.0,0.5663371]
[1739240697151,0.01,97768.0,97767.0,0.5663371]
[1739240698266,0.01,97768.0,97767.0,0.3618]
[1739240699063,0.01,97768.0,97767.0,0.5663371]
[1739240701760,0.1888,97800.0,97767.0,0.5718]
[1739240701761,0.1,97800.0,97767.0,0.5718]
[1739240701961,0.01002054,97794.0,97780.0,0.3608]
[1739240702168,0.01002054,97794.0,97787.0,0.2044953]
[1739240702469,0.0937,97797.0,97785.0,0.3608]
[1739240702470,0.062,97797.0,97785.0,0.3608]
[1739240702659,0.062,97797.0,97796.0,0.5652764]
[1739240702859,0.1,97800.0,97796.0,0.3608]
[1739240703058,0.1,97800.0,97799.0,0.2044702]
[1739240705077,0.1,97800.0,97799.0,0.2054702]
[1739240705574,0.103,97800.0,97799.0,0.2054702]
[1739240708368,0.103,97800.0,97799.0,0.21582394]
[1739240709377,0.103,97800.0,97799.0,0.2054702]
[1739240714873,0.103,97800.0,97796.0,0.3608]
[1739240714874,0.103,97800.0,97796.0,0.3514642]
[1739240716175,0.103,97800.0,97799.0,0.2044702]
[1739240716377,0.102,97800.0,97799.0,0.2044702]
[1739240717280,0.102,97800.0,97799.0,0.2054702]
[1739240717490,0.103,97800.0,97799.0,0.2054702]
[1739240720485,0.00015344,97806.0,97805.0,0.2044576]
[1739240720674,0.18202389,97815.0,97814.0,0.2044388]
[1739240720875,0.18202389,97815.0,97814.0,0.5652388]
[1739240722688,0.07572119,97815.0,97814.0,0.5652388]
[1739240722990,0.00015336,97824.0,97823.0,0.20442]
[1739240723188,0.00015336,97824.0,97823.0,0.56522]
[1739240724481,0.00015336,97824.0,97823.0,0.56722]
[1739240724880,0.0621,97855.0,97846.0,0.2043703]
[1739240725080,0.0621,97855.0,97823.0,0.3628]
[1739240725081,0.00068,97854.0,97841.0,0.0937597]
[1739240725282,0.0621,97855.0,97850.0,0.2043636]
[1739240726092,0.0621,97855.0,97850.0,0.5651636]
[1739240726483,0.18493866,97851.0,97850.0,0.5651636]
[1739240726979,0.18193866,97851.0,97850.0,0.5671636]
[1739240727178,0.18493866,97851.0,97850.0,0.5671636]
[1739240727686,0.003,97851.0,97850.0,0.5661636]
[1739240732196,0.003,97851.0,97850.0,0.2043636]
[1739240733289,0.0621,97855.0,97854.0,0.2043553]
[1739240734392,0.0641,97855.0,97854.0,0.2043553]
[1739240735291,0.0641,97855.0,97841.0,0.09391306]
[1739240735292,0.2043625,97851.0,97847.0,0.2043689]
[1739240735594,0.2043625,97851.0,97848.0,0.2043669]
[1739240737191,0.2053625,97851.0,97848.0,0.2043669]
[1739240740500,0.001,97851.0,97848.0,0.2043669]
[1739240745595,0.001,97851.0,97841.0,0.36095336]
[1739240745596,0.204367,97849.0,97841.0,0.00015336]
[1739240746896,0.204367,97849.0,97841.0,0.00115336]
[1739240747095,0.3608,97848.0,97841.0,0.00115336]
[1739240747302,0.3608,97848.0,97843.0,0.2043774]
[1739240748496,0.3608,97848.0,97843.0,0.2053774]
[1739240749200,0.3608,97848.0,97843.0,0.001]
[1739240749505,0.3608,97848.0,97846.0,0.2043705]
[1739240749706,0.3608,97848.0,97843.0,0.001]
[1739240749707,0.0621,97855.0,97847.0,0.2043679]
[1739240750094,0.0621,97855.0,97848.0,0.2043673]
[1739240751093,0.0631,97855.0,97848.0,0.2043673]
[1739240751499,0.0621,97855.0,97848.0,0.2043673]
[1739240751698,0.0621,97855.0,97849.0,0.2043654]
[1739240751699,0.0631,97855.0,97849.0,0.2043654]
[1739240752495,0.0631,97855.0,97841.0,0.36095336]
[1739240752701,0.0631,97855.0,97850.0,0.2043628]
[1739240753708,0.04969434,97854.0,97850.0,0.2043628]
[1739240754504,0.25405004,97854.0,97850.0,0.2043628]
[1739240754807,0.2043586,97853.0,97850.0,0.2043628]
[1739240755704,0.04969434,97854.0,97841.0,0.00015336]
[1739240755705,0.2043691,97848.0,97842.0,0.2043797]
[1739240755908,0.2043691,97848.0,97841.0,0.00015336]
[1739240756106,0.2043743,97845.0,97843.0,0.2043776]
[1739240756295,0.3608,97847.0,97841.0,0.00015336]
[1739240756497,0.2043794,97843.0,97841.0,0.00015336]
[1739240756701,0.0325,97842.0,97841.0,0.00015336]
[1739240757608,0.0325,97842.0,97820.0,0.1868597]
[1739240757609,0.2044136,97827.0,97820.0,0.2044243]
[1739240757809,0.3608,97825.0,97824.0,0.2044179]
[1739240759624,0.0657,97826.0,97824.0,0.2094179]
[1739240760010,0.0657,97826.0,97824.0,0.2154179]
[1739240760407,0.2701147,97826.0,97824.0,0.011]
[1739240760715,0.2701147,97826.0,97815.0,0.00015336]
[1739240760716,0.2044346,97816.0,97815.0,0.00015336]
[1739240760903,0.5652346,97816.0,97815.0,0.00015336]
[1739240761813,0.204443,97812.0,97811.0,0.18288056]
[1739240762114,0.285443,97812.0,97811.0,0.18288056]
[1739240764013,0.2044618,97803.0,97802.0,0.00015336]
[1739240764203,0.5652618,97803.0,97802.0,0.00015336]
[1739240765512,0.5672618,97803.0,97802.0,0.00015336]
[1739240766408,0.5672618,97803.0,97802.0,0.00115336]
[1739240767004,0.5652618,97803.0,97802.0,0.00115336]
[1739240767210,0.5662618,97803.0,97802.0,0.00115336]
[1739240767810,0.5652618,97803.0,97802.0,0.00115336]
[1739240768018,0.5662618,97803.0,97802.0,0.00115336]
[1739240770216,0.5652618,97803.0,97802.0,0.00115336]
[1739240770421,0.5662618,97803.0,97802.0,0.00115336]
[1739240770914,0.5662618,97803.0,97802.0,0.00015336]
[1739240771317,0.6459418,97803.0,97802.0,0.00015336]
[1739240771919,0.6469418,97803.0,97802.0,0.00015336]
[1739240772814,0.6467418,97803.0,97802.0,0.00015336]
[1739240773418,0.6467418,97803.0,97802.0,0.00115336]
[1739240773609,0.6447418,97803.0,97802.0,0.00115336]
[1739240774224,0.6445418,97803.0,97802.0,0.00115336]
[1739240774521,0.44108,97803.0,97782.0,0.01005568]
[1739240774723,0.0937597,97800.0,97792.0,0.2044846]
[1739240774923,0.204482,97794.0,97792.0,0.2044846]
[1739240776825,0.2044868,97792.0,97788.0,0.274993]
[1739240777025,0.2044868,97792.0,97789.0,0.2044908]
[1739240777410,0.2044827,97793.0,97792.0,0.006]
[1739240778215,0.2044884,97791.0,97789.0,0.2124908]
[1739240778414,0.2044884,97791.0,97789.0,0.2164908]
[1739240779024,0.2044884,97791.0,97789.0,0.2084908]
[1739240779925,0.2044884,97791.0,97789.0,0.2044908]
[1739240780514,0.2044884,97791.0,97789.0,0.2164908]
[1739240783527,0.2044789,97795.0,97793.0,0.204482]
[1739240784619,0.2044789,97795.0,97793.0,0.209482]
[1739240785019,0.2044789,97795.0,97793.0,0.212482]
[1739240786329,0.2044789,97795.0,97794.0,0.01142211]
[1739240787025,0.2044789,97795.0,97793.0,0.212482]
[1739240787541,0.2044789,97795.0,97793.0,0.209482]
[1739240787789,0.2044789,97795.0,97794.0,0.003]
[1739240788225,0.2044789,97795.0,97794.0,0.004]
[1739240789417,0.2044789,97795.0,97794.0,0.01544596]
[1739240790022,0.2044789,97795.0,97794.0,0.01844596]
[1739240790426,0.2044789,97795.0,97794.0,0.01844039]
[1739240792934,0.2044789,97795.0,97794.0,0.007]
[1739240795936,1.7044789,97795.0,97794.0,0.007]
[1739240798630,1.75420653,97795.0,97794.0,0.007]
[1739240798838,2.11500653,97795.0,97794.0,0.007]
[1739240802939,0.61500653,97795.0,97794.0,0.007]
[1739240803538,2.11500653,97795.0,97794.0,0.007]
[1739240804739,0.61500653,97795.0,97794.0,0.007]
[1739240805944,0.61500653,97795.0,97794.0,0.00133826]
[1739240806944,0.69096653,97795.0,97794.0,0.00133826]
[1739240807844,0.69088653,97795.0,97794.0,0.00133826]
[1739240809336,2.19088653,97795.0,97794.0,0.00133826]
[1739240810844,2.1411589,97795.0,97794.0,0.00133826]
[1739240811239,0.5652789,97795.0,97794.0,0.00133826]
[1739240811444,0.2044789,97795.0,97794.0,0.00133826]
[1739240811838,0.2044789,97795.0,97794.0,0.01277141]
[1739240812244,0.2044789,97795.0,97794.0,0.01284628]
[1739240813748,0.2044789,97795.0,97794.0,0.00133826]
[1739240813942,0.2044789,97795.0,97794.0,0.0128396]
[1739240815140,0.2044789,97795.0,97794.0,0.00133826]
[1739240815336,0.5652789,97795.0,97794.0,0.00133826]
[1739240815947,2.0652789,97795.0,97794.0,0.00133826]
[1739240818550,0.2045016,97784.0,97783.0,0.00015336]
[1739240818752,0.2045184,97776.0,97775.0,0.18288056]
[1739240819056,0.5653184,97776.0,97775.0,0.18288056]
[1739240820855,0.5653184,97776.0,97775.0,0.19788056]
[1739240820856,0.5663184,97776.0,97775.0,0.19788056]
[1739240821354,0.5663184,97776.0,97775.0,0.20488056]
[1739240821355,0.5673184,97776.0,97775.0,0.20488056]
[1739240822452,0.5673184,97776.0,97775.0,0.022]
[1739240841068,0.5673184,97776.0,97766.0,0.00015336]
[1739240841069,0.2045372,97767.0,97766.0,0.00015336]
[1739240841371,2.0653372,97767.0,97766.0,0.00015336]
[1739240843458,2.0663372,97767.0,97766.0,0.01515336]
[1739240843963,2.0673372,97767.0,97766.0,0.01915336]
[1739240845269,0.5673372,97767.0,97766.0,0.01915336]
[1739240846970,0.61708074,97767.0,97766.0,0.01915336]
[1739240849567,0.61708074,97767.0,97747.0,0.0932]
[1739240849568,0.2045762,97749.0,97747.0,0.0932]
[1739240849762,0.5653762,97749.0,97747.0,0.0328]
[1739240850370,0.5653762,97749.0,97746.0,0.00153412]
[1739240850371,0.204579,97747.0,97746.0,0.00153412]
[1739240851458,0.3628,97749.0,97739.0,0.30520506]
[1739240851664,0.5653937,97740.0,97739.0,0.30520506]
[1739240853569,0.2065937,97740.0,97739.0,0.30520506]
[1739240853769,0.5683937,97740.0,97739.0,0.30520506]
[1739240854177,0.3638,97740.0,97736.0,0.0631]
[1739240854475,0.2045993,97738.0,97736.0,0.0631]
[1739240856469,0.2055993,97738.0,97736.0,0.0631]
[1739240858078,0.2075993,97738.0,97736.0,0.0631]
[1739240858873,0.3608,97737.0,97736.0,0.0631]
[1739240860169,0.3618,97737.0,97736.0,0.0631]
[1739240860375,0.001,97737.0,97736.0,0.0631]
[1739240860570,0.3628,97737.0,97736.0,0.0631]
[1739240861372,0.3628,97737.0,97736.0,0.033]
[1739240861569,0.2046063,97734.0,97729.0,0.0306]
[1739240862280,0.2046118,97732.0,97729.0,0.0306]
[1739240863574,0.2066118,97732.0,97729.0,0.0306]
[1739240863976,0.2046146,97730.0,97729.0,0.0306]
[1739240864176,0.2046209,97727.0,97726.0,0.0631]
[1739240864382,0.204631,97723.0,97720.0,0.2046336]
[1739240865370,0.2046333,97722.0,97720.0,0.2046336]
[1739240866783,0.2056333,97722.0,97720.0,0.2046336]
[1739240867386,0.2066333,97722.0,97720.0,0.2046336]
[1739240874482,0.002,97722.0,97717.0,0.031]
[1739240874687,0.2046397,97718.0,97717.0,0.031]
[1739240875077,0.2046397,97718.0,97714.0,0.2046479]
[1739240875389,0.2046451,97716.0,97714.0,0.2046479]
[1739240876585,0.2056451,97716.0,97714.0,0.2046479]
[1739240878681,0.2066451,97716.0,97714.0,0.2046479]
[1739240882491,0.2046582,97710.0,97708.0,0.2046607]
[1739240882684,0.2046582,97710.0,97708.0,0.38844663]
[1739240883895,0.2046582,97710.0,97708.0,0.39888434]
[1739240884093,0.2056582,97710.0,97708.0,0.39888434]
[1739240884795,0.001,97710.0,97708.0,0.39888434]
[1739240885095,0.002,97710.0,97708.0,0.39888434]
[1739240886897,0.002,97710.0,97708.0,0.21509841]
[1739240899901,0.2046586,97709.0,97708.0,0.2046607]
[1739240901011,0.2066586,97709.0,97708.0,0.2046607]
[1739240902608,0.002,97709.0,97708.0,0.2046607]
[1739240925541,0.002,97709.0,97708.0,0.4497086]
[1739240926834,0.20475704,97736.0,97728.0,0.2046188]
[1739240927236,0.3608,97735.0,97728.0,0.2046188]
[1739240927437,0.2046107,97732.0,97728.0,0.2046188]
[1739240927636,0.3608,97735.0,97728.0,0.2046188]
[1739240927945,0.18448425,97729.0,97728.0,0.2046188]
[1739240928136,0.18548425,97729.0,97728.0,0.2046188]
[1739240929541,0.003,97729.0,97728.0,0.2046188]
[1739240932536,0.003,97729.0,97717.0,0.18422637]
[1739240932851,0.2046335,97721.0,97719.0,0.2046365]
[1739240933041,0.2046335,97721.0,97717.0,0.18422637]
[1739240933042,0.41120905,97727.0,97717.0,0.18422637]
[1739240933245,0.2046398,97718.0,97717.0,0.18422637]
[1739240933848,0.2046398,97718.0,97717.0,0.18522637]
[1739240935351,0.204628,97724.0,97722.0,0.2046312]
[1739240936149,0.204628,97724.0,97723.0,0.01172758]
[1739240936345,0.001,97724.0,97723.0,0.01172758]
[1739240937059,0.003,97724.0,97723.0,0.01172758]
[1739240937656,0.001,97724.0,97723.0,0.01172758]
[1739240937859,0.002,97724.0,97723.0,0.01272758]
[1739240938158,0.002,97724.0,97723.0,0.01278545]
[1739240938159,0.003,97724.0,97723.0,0.01278545]
[1739240939454,0.003,97724.0,97723.0,0.01260961]
[1739240940652,0.003,97724.0,97723.0,0.01262648]
[1739240943060,0.3638,97724.0,97723.0,0.001]
[1739240943461,0.4299,97724.0,97723.0,0.001]
[1739240944863,0.0691,97724.0,97723.0,0.001]
[1739240945052,0.4299,97724.0,97723.0,0.001]
[1739240964264,0.47966446,97724.0,97723.0,0.001]
[1739240967370,0.41356446,97724.0,97723.0,0.001]
[1739240967772,0.41356446,97724.0,97723.0,0.0313]
[1739240968067,0.05276446,97724.0,97723.0,0.3921]
[1739240972382,0.003,97724.0,97723.0,0.3921]
[1739240978183,0.003,97724.0,97723.0,0.0313]
[1739240979974,0.003,97724.0,97723.0,0.001]
[1739240980390,0.2076272,97724.0,97723.0,0.001]
[1739240986594,0.2400272,97724.0,97723.0,0.001]
[1739240988498,1.7400272,97724.0,97723.0,0.001]
[1739240988886,0.2400272,97724.0,97723.0,0.001]
[1739240998695,0.0354,97724.0,97707.0,0.2046626]
[1739240998894,0.204645,97716.0,97707.0,0.2046626]
[1739240999195,0.2046613,97708.0,97705.0,0.3608]
[1739240999400,0.3608,97712.0,97704.0,0.18376932]
[1739240999597,0.204667,97705.0,97704.0,0.18376932]
[1739241001192,0.3608,97707.0,97700.0,0.1]
[1739241001488,0.2046753,97701.0,97700.0,0.1]
[1739241002693,0.0658,97704.0,97698.0,0.00153524]
[1739241002897,0.5654795,97699.0,97698.0,0.00153524]
[1739241003100,0.2046983,97691.0,97685.0,0.2047086]
[1739241003897,0.2047085,97686.0,97682.0,0.2450479]
[1739241004401,0.2047023,97689.0,97682.0,0.2450479]
[1739241004900,0.204704,97688.0,97682.0,0.2450479]
[1739241005202,0.204704,97688.0,97682.0,0.449762]
[1739241005402,0.204704,97688.0,97684.0,0.20471]
[1739241006395,0.205704,97688.0,97684.0,0.20471]
[1739241007201,0.206704,97688.0,97684.0,0.20471]
[1739241007403,0.002,97688.0,97681.0,0.0606]
[1739241007591,0.20471,97685.0,97681.0,0.0606]
[1739241008906,0.20471,97685.0,97682.0,0.2047135]
[1739241009299,0.20571,97685.0,97682.0,0.2047135]
[1739241010306,0.20671,97685.0,97682.0,0.2047135]
[1739241011806,0.204755,97663.0,97658.0,0.3608]
[1739241012005,0.204755,97663.0,97656.0,0.2450479]
[1739241012405,0.2047676,97657.0,97656.0,0.2450479]
[1739241013002,0.002,97663.0,97657.0,0.2047676]
[1739241013211,0.2047676,97657.0,97656.0,0.2450479]
[1739241013396,0.001,97663.0,97659.0,0.2047627]
[1739241013795,1.50068,97667.0,97664.0,0.2047521]
[1739241014007,1.5,97667.0,97664.0,0.2047521]
[1739241014700,0.3608,97670.0,97657.0,0.07686361]
[1739241014903,0.00015352,97672.0,97671.0,0.2047382]
[1739241016801,0.00215352,97672.0,97671.0,0.2047382]
[1739241017706,0.00315352,97672.0,97671.0,0.2047382]
[1739241023006,1.5,97714.0,97686.0,0.2047068]
[1739241023309,1.5,97714.0,97695.0,0.2046862]
[1739241023310,0.2046662,97706.0,97695.0,0.2046862]
[1739241023515,0.2046662,97706.0,97696.0,0.2363841]
[1739241024908,0.2046662,97706.0,97697.0,0.2046825]
[1739241025102,0.2046662,97706.0,97698.0,0.2046804]
[1739241025712,0.2046662,97706.0,97696.0,0.10956361]
[1739241026021,0.15194405,97707.0,97704.0,0.2046678]
[1739241026205,0.001,97706.0,97705.0,0.2046655]
[1739241026798,0.15194405,97707.0,97705.0,0.2046655]
[1739241026996,0.15194405,97707.0,97706.0,0.3608]
[1739241027207,0.15194405,97707.0,97706.0,0.394]
[1739241028815,0.15294405,97707.0,97706.0,0.394]
[1739241029312,0.009,97707.0,97706.0,0.394]
[1739241035706,1e-08,97711.0,97706.0,0.394]
[1739241035905,1e-08,97711.0,97710.0,0.2046565]
[1739241037709,1e-08,97711.0,97710.0,0.21470506]
[1739241038214,0.00100001,97711.0,97710.0,0.21470506]
[1739241038607,0.00800001,97711.0,97710.0,0.21470506]
[1739241038808,0.00900001,97711.0,97710.0,0.21470506]
[1739241039419,0.01000001,97711.0,97710.0,0.21570506]
[1739241046620,0.01000001,97711.0,97710.0,0.57650506]
[1739241049021,0.01000001,97711.0,97710.0,0.5664565]
[1739241053621,0.01000001,97711.0,97691.0,0.0001536]
[1739241053622,0.37080001,97711.0,97691.0,0.0001536]
[1739241053818,0.2046708,97704.0,97691.0,0.01064939]
[1739241054020,0.0318,97703.0,97691.0,0.01064939]
[1739241054222,0.0318,97703.0,97701.0,0.2046745]
[1739241055625,0.0348,97703.0,97701.0,0.2046745]